bitfinex-derivatives/quotes_SOLF0:USTF0_20241103
["timestamp","ask_amount","ask_price","bid_price","bid_amount"]
[1730621016505,5.7913,163.92,163.89,9.62931362]
[1730621016707,9.07691362,163.99,163.91,6.57751362]
[1730621016998,3.0507,163.95,163.94,6.57751362]
[1730621017403,5.7907,163.95,163.94,6.57751362]
[1730621019614,3.0509,163.94,163.93,6.57751362]
[1730621023108,3.0513,163.92,163.91,6.57751362]
[1730621023513,2.74,163.95,163.89,6.57751362]
[1730621023707,3.0517,163.9,163.89,6.57751362]
[1730621023910,5.7917,163.9,163.89,6.57751362]
[1730621024410,3.0518,163.89,163.88,6.57751362]
[1730621025607,5.7918,163.9,163.88,6.57751362]
[1730621025907,5.7918,163.9,163.89,6.57751362]
[1730621027212,9.70273859,163.9,163.89,6.57751362]
[1730621027919,5.7918,163.9,163.89,6.57751362]
[1730621028108,9.70248671,163.9,163.89,6.57751362]
[1730621028410,5.7918,163.9,163.89,6.57751362]
[1730621028707,9.70208633,163.9,163.89,6.57751362]
[1730621029103,5.7918,163.9,163.89,6.57751362]
[1730621029298,9.70164055,163.9,163.89,6.57751362]
[1730621030401,5.7918,163.9,163.89,6.57751362]
[1730621030606,9.70162953,163.9,163.89,6.57751362]
[1730621033711,3.052,163.89,163.88,6.57751362]
[1730621033923,6.96182953,163.89,163.88,6.57751362]
[1730621034112,3.052,163.89,163.88,6.57751362]
[1730621034309,6.96106522,163.89,163.88,6.57751362]
[1730621036035,3.0523,163.87,163.86,6.57751362]
[1730621036321,3.90906522,163.87,163.83,6.57751362]
[1730621036519,3.0529,163.84,163.83,6.57751362]
[1730621037120,6.96083508,163.84,163.83,6.57751362]
[1730621037917,6.96073021,163.84,163.83,6.57751362]
[1730621039124,6.96142696,163.84,163.83,6.57751362]
[1730621039423,3.0529,163.84,163.83,6.57751362]
[1730621039616,6.57751362,163.91,163.83,6.57751362]
[1730621039927,3.0525,163.86,163.85,6.57751362]
[1730621040426,5.7923,163.87,163.85,6.57751362]
[1730621040729,3.90852695,163.86,163.85,6.57751362]
[1730621041026,6.96092695,163.86,163.85,6.57751362]
[1730621047730,3.0524,163.86,163.85,6.57751362]
[1730621047923,6.96084882,163.86,163.85,6.57751362]
[1730621049123,6.96135424,163.86,163.85,6.57751362]
[1730621051738,3.0524,163.86,163.85,6.57751362]
[1730621051927,3.91056647,163.86,163.83,6.57751362]
[1730621052233,6.96336647,163.85,163.83,6.57751362]
[1730621052431,3.91056647,163.84,163.83,6.57751362]
[1730621052626,3.91113845,163.84,163.83,6.57751362]
[1730621056336,3.0528,163.85,163.83,6.57751362]
[1730621056536,3.914908,163.84,163.83,6.57751362]
[1730621058841,3.914908,163.84,163.82,6.57751362]
[1730621059043,3.914908,163.83,163.82,6.57751362]
[1730621059535,3.91745,163.83,163.82,6.57751362]
[1730621059734,6.65745,163.83,163.81,6.57751362]
[1730621059933,6.97055,163.82,163.81,6.57751362]
[1730621060735,3.0535,163.8,163.79,6.57751362]
[1730621061137,6.97095,163.8,163.79,6.57751362]
[1730621061638,6.97084784,163.8,163.79,6.57751362]
[1730621068751,3.0535,163.8,163.79,6.57751362]
[1730621069441,6.97469575,163.8,163.79,6.57751362]
[1730621070146,3.0535,163.8,163.79,6.57751362]
[1730621071140,6.97468987,163.8,163.79,6.57751362]
[1730621071540,3.0535,163.8,163.79,6.57751362]
[1730621072446,6.97507443,163.8,163.79,6.57751362]
[1730621075657,3.92157443,163.8,163.79,6.57751362]
[1730621077150,7.84122778,163.8,163.79,6.57751362]
[1730621077453,10.89472778,163.8,163.79,6.57751362]
[1730621081255,6.97315335,163.8,163.79,6.57751362]
[1730621082156,6.97103605,163.8,163.79,6.57751362]
[1730621082351,3.0535,163.8,163.79,6.57751362]
[1730621082546,6.97092429,163.8,163.79,6.57751362]
[1730621082856,6.97086623,163.8,163.79,6.57751362]
[1730621085948,3.0535,163.8,163.79,6.57751362]
[1730621086147,6.97072074,163.8,163.79,6.57751362]
[1730621089661,3.0535,163.8,163.79,6.57751362]
[1730621089855,6.96976124,163.8,163.79,6.57751362]
[1730621095266,6.96976124,163.8,163.78,6.57751362]
[1730621095470,3.91626124,163.79,163.78,6.57751362]
[1730621095655,3.0535,163.8,163.78,6.57751362]
[1730621095861,3.91834605,163.79,163.78,6.57751362]
[1730621101472,6.97204605,163.79,163.78,6.57751362]
[1730621103674,6.97597246,163.79,163.78,6.57751362]
[1730621103969,6.97595532,163.79,163.78,6.57751362]
[1730621104966,3.92225532,163.79,163.78,9.63141362]
[1730621107371,2.74,163.81,163.79,3.0537]
[1730621107678,2.74,163.81,163.8,6.57751362]
[1730621107976,6.66415159,163.81,163.8,6.57751362]
[1730621109875,6.66415159,163.81,163.8,9.63101362]
[1730621115284,6.67126829,163.81,163.8,9.63101362]
[1730621118680,3.93126829,163.81,163.8,9.63101362]
[1730621120680,6.57751362,163.9,163.8,6.57751362]
[1730621120879,6.57751362,163.9,163.83,6.57751362]
[1730621120880,2.74,163.89,163.83,6.57751362]
[1730621121079,3.0526,163.85,163.83,6.57751362]
[1730621121280,5.7926,163.85,163.83,6.57751362]
[1730621122286,5.7926,163.85,163.83,9.63041362]
[1730621127587,2.74,163.85,163.83,9.63041362]
[1730621130380,3.0523,163.87,163.83,6.57751362]
[1730621130581,50.55751362,163.93,163.85,6.57751362]
[1730621130582,2.74,163.88,163.85,6.57751362]
[1730621130894,2.74,163.89,163.87,6.57751362]
[1730621131699,5.7917,163.9,163.87,6.57751362]
[1730621131891,5.7917,163.9,163.89,6.57751362]
[1730621133185,9.67563919,163.9,163.89,6.57751362]
[1730621134292,9.67565296,163.9,163.89,6.57751362]
[1730621134502,5.7917,163.9,163.89,6.57751362]
[1730621135496,9.67539069,163.9,163.89,6.57751362]
[1730621136091,6.62369069,163.9,163.89,6.57751362]
[1730621136596,3.88369069,163.9,163.89,6.57751362]
[1730621136794,48.66505736,163.92,163.89,6.57751362]
[1730621136999,48.66505736,163.92,163.91,6.57751362]
[1730621139896,45.92505736,163.92,163.91,6.57751362]
[1730621148408,48.97635736,163.92,163.91,6.57751362]
[1730621149616,48.97635736,163.92,163.85,3.936]
[1730621149617,45.92505736,163.92,163.87,6.57751362]
[1730621150419,3.0516,163.91,163.87,6.57751362]
[1730621150622,45.92505736,163.92,163.87,6.57751362]
[1730621152319,3.0519,163.89,163.87,6.57751362]
[1730621152522,2.74,163.89,163.87,6.57751362]
[1730621152828,9.31751362,163.89,163.79,1.2549]
[1730621153123,6.57751362,163.86,163.81,6.57751362]
[1730621153422,1.1183,163.91,163.81,6.57751362]
[1730621153423,3.053,163.83,163.81,6.57751362]
[1730621153626,2.74,163.82,163.81,6.57751362]
[1730621155627,2.74,163.82,163.79,6.57751362]
[1730621156419,3.0535,163.8,163.78,32.47526267]
[1730621156624,3.0535,163.8,163.78,6.57751362]
[1730621158328,3.0535,163.81,163.78,9.63141362]
[1730621158920,3.0535,163.81,163.78,6.57751362]
[1730621159532,3.0537,163.79,163.78,6.57751362]
[1730621160628,3.0536,163.8,163.78,6.57751362]
[1730621164329,6.57751362,163.83,163.78,6.57751362]
[1730621164623,3.0534,163.81,163.79,6.57751362]
[1730621164833,2.74,163.8,163.79,6.57751362]
[1730621165725,2.74,163.8,163.79,9.63111362]
[1730621166533,2.74,163.8,163.79,6.57751362]
[1730621168425,2.74,163.81,163.79,6.57751362]
[1730621168727,2.74,163.81,163.8,6.57751362]
[1730621170233,2.74,163.81,163.8,9.63101362]
[1730621173334,2.74,163.82,163.8,9.63101362]
[1730621177631,2.74,163.82,163.73,30.62263464]
[1730621177632,3.0535,163.81,163.78,3.0538]
[1730621179640,2.74,163.8,163.78,3.0538]
[1730621180142,2.74,163.8,163.77,6.57751362]
[1730621180342,2.74,163.8,163.76,9.63161362]
[1730621180343,5.7937,163.8,163.76,9.63161362]
[1730621180543,5.7937,163.8,163.76,6.57751362]
[1730621180935,5.7937,163.8,163.77,3.054]
[1730621189652,2.74,163.8,163.77,6.57751362]
[1730621190540,2.74,163.8,163.78,3.0538]
[1730621196357,2.74,163.8,163.79,6.57751362]
[1730621199660,2.74,163.8,163.78,3.0538]
[1730621200555,14.92370305,163.79,163.78,3.0538]
[1730621201664,11.86923979,163.79,163.78,3.0538]
[1730621202959,11.86923979,163.79,163.77,6.57751362]
[1730621203267,11.86923979,163.78,163.77,6.57751362]
[1730621203661,3.0538,163.79,163.77,9.63161362]
[1730621203965,11.30359778,163.78,163.77,9.63161362]
[1730621204753,11.30359778,163.78,163.75,6.57751362]
[1730621204951,11.30359778,163.77,163.76,3.0541]
[1730621205468,3.0543,163.76,163.73,29.64003464]
[1730621205761,11.30359778,163.75,163.73,29.64003464]
[1730621205961,11.30359778,163.74,163.73,29.64003464]
[1730621206566,11.30812298,163.74,163.73,29.64003464]
[1730621208867,4.34927807,163.74,163.73,29.64003464]
[1730621209077,11.07237461,163.74,163.73,29.64003464]
[1730621210776,17.1156175,163.74,163.73,29.64003464]
[1730621211072,17.00775849,163.74,163.73,29.64003464]
[1730621211465,17.00775849,163.74,163.73,26.58533464]
[1730621212674,10.9643797,163.74,163.73,26.58533464]
[1730621213675,10.96880551,163.74,163.73,26.58533464]
[1730621217468,13.68880551,163.74,163.73,26.58533464]
[1730621219465,3.0553,163.71,163.68,9.63321362]
[1730621219667,10.98045096,163.7,163.66,6.57751362]
[1730621219876,10.98045096,163.69,163.66,6.57751362]
[1730621220172,10.98045096,163.68,163.65,7.94511362]
[1730621220475,10.9882545,163.67,163.66,3.056]
[1730621220777,20.4896952,163.67,163.66,3.056]
[1730621220967,5.7755,163.7,163.66,3.056]
[1730621221168,21.36585482,163.69,163.67,3.0559]
[1730621221368,14.92076586,163.68,163.65,7.94511362]
[1730621221570,15.21149422,163.66,163.65,7.94511362]
[1730621221768,25.91746239,163.66,163.65,7.94511362]
[1730621221971,25.91746239,163.66,163.63,7.84591362]
[1730621222176,18.31174296,163.65,163.63,1.2684]
[1730621222479,25.91746239,163.64,163.6,7.94511362]
[1730621222680,7.60571943,163.62,163.6,7.94511362]
[1730621222979,18.31174296,163.61,163.59,6.57751362]
[1730621223178,18.31174296,163.6,163.59,6.57751362]
[1730621223479,18.31174296,163.6,163.59,9.63491362]
[1730621223882,11.86454244,163.6,163.59,9.63491362]
[1730621224369,4.56328555,163.6,163.59,9.63491362]
[1730621224566,2.74,163.64,163.59,6.57751362]
[1730621224783,13.35944073,163.63,163.6,6.57751362]
[1730621224977,7.21958672,163.62,163.59,6.57751362]
[1730621225284,13.35976671,163.61,163.59,9.63481362]
[1730621225467,7.21958672,163.6,163.59,6.57751362]
[1730621225672,13.40231943,163.64,163.6,3.0571]
[1730621225983,13.25757692,163.63,163.6,3.0571]
[1730621226282,13.25757692,163.62,163.6,3.0571]
[1730621226486,13.40231943,163.64,163.6,3.0571]
[1730621226679,13.24819471,163.63,163.6,3.0571]
[1730621226872,13.24819471,163.62,163.6,3.0571]
[1730621227179,13.40231943,163.64,163.6,3.0571]
[1730621227383,13.23866778,163.63,163.6,3.0571]
[1730621227569,13.23866778,163.63,163.58,6.57751362]
[1730621227570,7.11208379,163.62,163.58,6.57751362]
[1730621227781,13.23811808,163.61,163.58,6.57751362]
[1730621227974,2.72,163.6,163.58,6.57751362]
[1730621228580,2.72,163.6,163.58,9.63501362]
[1730621228783,2.72,163.6,163.56,6.57751362]
[1730621229180,2.72,163.6,163.55,6.57751362]
[1730621229371,7.10100675,163.59,163.54,1.3348]
[1730621229570,7.10100675,163.58,163.53,6.57751362]
[1730621229774,3.058,163.56,163.52,1.3607]
[1730621230072,5.778,163.56,163.53,3.0585]
[1730621230474,2.72,163.56,163.53,3.0585]
[1730621235678,3.0582,163.55,163.51,3.0588]
[1730621236183,9.29751362,163.56,163.51,3.0588]
[1730621236384,3.0584,163.54,163.51,3.0588]
[1730621236980,3.0584,163.54,163.5,6.57751362]
[1730621237187,3.0586,163.53,163.49,1.2777]
[1730621237488,2.74,163.52,163.48,6.57751362]
[1730621237788,7.1549115,163.52,163.48,6.57751362]
[1730621238093,7.4740115,163.51,163.46,34.93659733]
[1730621238300,4.4149115,163.5,163.46,34.93659733]
[1730621238592,9.63661362,163.51,163.47,3.0597]
[1730621238790,11.45680482,163.5,163.47,3.0597]
[1730621238982,9.63661362,163.51,163.46,34.93659733]
[1730621238983,7.46576339,163.49,163.46,3.0598]
[1730621239180,7.14646339,163.48,163.44,7.83201362]
[1730621239384,7.14646339,163.48,163.41,7.83941362]
[1730621239385,11.45635603,163.47,163.41,7.83941362]
[1730621239689,4.40646339,163.46,163.43,6.57751362]
[1730621239997,17.14641495,163.5,163.46,3.0598]
[1730621240291,20.76235365,163.49,163.43,6.57751362]
[1730621240482,14.18484003,163.48,163.43,6.57751362]
[1730621240683,4.40186155,163.47,163.45,6.57751362]
[1730621240878,2.74,163.48,163.45,6.57751362]
[1730621241293,2.74,163.48,163.46,3.0597]
[1730621242085,2.74,163.48,163.45,6.57751362]
[1730621242285,2.74,163.48,163.47,9.63721362]
[1730621242486,4.39376577,163.51,163.47,6.57751362]
[1730621242693,7.13376577,163.5,163.49,6.57751362]
[1730621242891,4.39376577,163.5,163.49,3.0593]
[1730621244799,7.45296577,163.5,163.46,9.63731362]
[1730621244997,4.39376577,163.49,163.46,9.63731362]
[1730621245202,4.39376577,163.48,163.46,9.63731362]
[1730621245504,3.0592,163.5,163.46,9.63731362]
[1730621245804,11.41153216,163.49,163.46,9.63731362]
[1730621245992,4.38907444,163.48,163.46,9.63731362]
[1730621246193,3.0592,163.5,163.46,9.63731362]
[1730621246395,4.32076742,163.49,163.47,9.63701362]
[1730621246597,5.799,163.51,163.47,6.57751362]
[1730621246796,4.32092747,163.5,163.47,6.57751362]
[1730621246996,5.799,163.51,163.47,6.57751362]
[1730621247198,2.74,163.51,163.47,6.57751362]
[1730621247504,2.74,163.5,163.47,6.57751362]
[1730621247904,2.74,163.5,163.48,3.0593]
[1730621250004,2.74,163.5,163.49,3.0593]
[1730621250706,7.05665622,163.5,163.49,3.0593]
[1730621251207,2.74,163.5,163.49,3.0593]
[1730621252011,7.0558204,163.5,163.49,3.0593]
[1730621252204,2.74,163.5,163.49,3.0593]
[1730621260715,6.57751362,163.55,163.49,6.57751362]
[1730621260913,2.74,163.52,163.51,3.0589]
[1730621262317,2.74,163.53,163.51,3.0589]
[1730621263206,2.74,163.53,163.51,9.63641362]
[1730621267622,3.0588,163.52,163.49,9.63681362]
[1730621268419,2.74,163.53,163.49,9.63681362]
[1730621268725,5.7986,163.53,163.49,9.63681362]
[1730621273027,2.74,163.53,163.52,3.0588]
[1730621279620,3.0589,163.52,163.49,3.0592]
[1730621282138,3.0589,163.52,163.46,1.2967]
[1730621282139,9.31751362,163.53,163.46,7.87421362]
[1730621282434,3.0592,163.5,163.47,3.0596]
[1730621282639,2.74,163.49,163.47,3.0596]
[1730621285226,4.36678565,163.48,163.47,3.0596]
[1730621286732,9.31751362,163.49,163.47,3.0596]
[1730621287338,4.37135493,163.48,163.47,3.0596]
[1730621287537,9.31751362,163.49,163.47,3.0596]
[1730621287838,4.37549844,163.48,163.47,3.0596]
[1730621288533,7.43509844,163.48,163.45,4.3901]
[1730621288839,4.37549844,163.47,163.45,3.06]
[1730621289135,3.0596,163.48,163.45,3.06]
[1730621289136,4.37549844,163.46,163.45,3.06]
[1730621289337,10.95301206,163.46,163.41,3.0607]
[1730621289523,13.69301206,163.45,163.39,6.57751362]
[1730621289724,7.11549844,163.44,163.39,6.57751362]
[1730621289930,7.11549844,163.44,163.4,3.0609]
[1730621289931,4.37549844,163.43,163.4,3.0609]
[1730621290133,4.37549844,163.42,163.4,3.0609]
[1730621290446,5.8004,163.44,163.4,3.0609]
[1730621290737,4.31301706,163.43,163.4,3.0609]
[1730621291037,4.31301706,163.42,163.4,3.0609]
[1730621291235,2.74,163.44,163.39,6.57751362]
[1730621291439,2.74,163.44,163.33,12.8965]
[1730621291440,11.2221927,163.43,163.41,6.57751362]
[1730621291631,2.74,163.44,163.41,6.57751362]
[1730621291632,4.31622796,163.42,163.41,6.57751362]
[1730621292041,0.13362796,163.42,163.41,6.57751362]
[1730621292638,2.74,163.44,163.42,3.0606]
[1730621295442,6.57751362,163.47,163.42,6.57751362]
[1730621295630,6.67950784,163.46,163.42,6.57751362]
[1730621295939,2.74,163.48,163.42,6.57751362]
[1730621296142,6.67960012,163.47,163.44,3.0601]
[1730621296336,5.7995,163.48,163.44,3.0601]
[1730621296337,6.67960012,163.46,163.44,3.0601]
[1730621296533,6.67960012,163.47,163.45,3.0601]
[1730621296844,6.74285105,163.46,163.45,3.0601]
[1730621297844,2.74,163.5,163.45,6.57751362]
[1730621298642,2.74,163.5,163.47,3.0596]
[1730621304044,3.96206824,163.49,163.47,3.0596]
[1730621304341,3.96206824,163.48,163.47,3.0596]
[1730621304932,10.03576987,163.48,163.47,3.0596]
[1730621306344,3.96206824,163.48,163.47,3.0596]
[1730621306535,10.03711695,163.48,163.47,3.0596]
[1730621306737,6.07504871,163.48,163.47,3.0596]
[1730621306945,9.97037326,163.48,163.47,3.0596]
[1730621308048,3.89532455,163.48,163.47,3.0596]
[1730621308346,2.74,163.55,163.52,3.0586]
[1730621308547,2.74,163.55,163.52,9.63611362]
[1730621309449,2.74,163.55,163.45,5.7943815]
[1730621309450,2.74,163.55,163.5,3.059]
[1730621309650,6.57751362,163.54,163.49,6.57751362]
[1730621309848,3.0591,163.5,163.46,6.57751362]
[1730621310042,6.57751362,163.52,163.46,6.57751362]
[1730621310043,6.57751362,163.52,163.47,3.0596]
[1730621310641,3.059,163.51,163.47,3.0596]
[1730621314648,6.57751362,163.52,163.49,3.0592]
[1730621316541,9.31751362,163.54,163.5,3.0591]
[1730621316943,7.00625558,163.53,163.5,3.0591]
[1730621317143,7.00625558,163.52,163.5,3.0591]
[1730621317340,7.00625558,163.51,163.5,3.0591]
[1730621317955,12.37601362,163.54,163.5,3.0591]
[1730621318148,7.00620451,163.53,163.5,3.0591]
[1730621318351,12.37601362,163.54,163.5,3.0591]
[1730621318556,7.00604061,163.53,163.5,3.0591]
[1730621318855,7.00604061,163.52,163.5,3.0591]
[1730621319056,7.00604061,163.51,163.5,3.0591]
[1730621319948,12.37601362,163.54,163.5,3.0591]
[1730621320144,7.00589814,163.51,163.5,3.0591]
[1730621320351,11.38444869,163.51,163.5,3.0591]
[1730621321956,3.0586,163.53,163.5,3.0591]
[1730621322158,11.38366919,163.52,163.5,3.0591]
[1730621322360,11.38366919,163.51,163.5,3.0591]
[1730621325750,3.0586,163.53,163.5,3.0591]
[1730621325946,4.37758753,163.52,163.5,3.0591]
[1730621326151,11.38172759,163.51,163.5,3.0591]
[1730621326952,11.38172759,163.51,163.49,3.0592]
[1730621327146,11.38172759,163.5,163.49,3.0592]
[1730621328449,18.98048977,163.5,163.49,3.0592]
[1730621329768,18.98048977,163.5,163.48,6.57751362]
[1730621329769,3.0587,163.53,163.5,3.0591]
[1730621330267,11.38127879,163.52,163.5,3.0591]
[1730621330457,11.38127879,163.51,163.5,3.0591]
[1730621330855,3.0587,163.53,163.5,3.0591]
[1730621331064,11.37854856,163.52,163.5,3.0591]
[1730621331256,11.37854856,163.51,163.5,3.0591]
[1730621333264,17.77586972,163.51,163.5,3.0591]
[1730621333561,3.0587,163.53,163.5,3.0591]
[1730621333866,17.77645045,163.52,163.5,3.0591]
[1730621334068,17.77645045,163.51,163.5,3.0591]
[1730621335357,3.0591,163.5,163.46,3.0597]
[1730621335567,7.5956127,163.47,163.45,6.57751362]
[1730621335766,17.77645045,163.46,163.45,6.57751362]
[1730621336267,11.37886511,163.46,163.45,6.57751362]
[1730621337171,22.03477346,163.46,163.45,6.57751362]
[1730621337367,3.0589,163.51,163.48,3.0595]
[1730621337562,14.88604509,163.5,163.45,6.57751362]
[1730621337761,14.88604509,163.49,163.46,3.0598]
[1730621338071,14.88604509,163.48,163.44,39.93607214]
[1730621338368,7.59579283,163.45,163.44,39.93607214]
[1730621338669,22.48183792,163.45,163.44,39.93607214]
[1730621339256,22.48183792,163.45,163.44,42.99627214]
[1730621339463,28.48894212,163.45,163.44,42.99627214]
[1730621340074,28.48894212,163.45,163.43,3.0604]
[1730621340268,20.89314929,163.44,163.42,6.57751362]
[1730621340467,28.48738356,163.43,163.42,6.57751362]
[1730621340765,6.57751362,163.47,163.42,6.57751362]
[1730621340963,7.59364825,163.43,163.42,6.57751362]
[1730621341167,28.48203244,163.43,163.42,6.57751362]
[1730621341477,17.48210549,163.43,163.42,6.57751362]
[1730621342157,13.06775196,163.43,163.42,6.57751362]
[1730621342359,17.48155544,163.43,163.42,6.57751362]
[1730621343261,17.48155544,163.43,163.42,9.63811362]
[1730621343879,3.0598,163.47,163.42,6.57751362]
[1730621344069,3.0598,163.47,163.43,3.0603]
[1730621344376,7.59303067,163.45,163.43,3.0603]
[1730621344576,17.61915551,163.44,163.43,3.0603]
[1730621348080,11.47523622,163.44,163.43,3.0603]
[1730621348382,17.61982664,163.44,163.43,3.0603]
[1730621350575,11.47523622,163.44,163.43,3.0603]
[1730621351873,5.7995,163.48,163.42,6.57751362]
[1730621352074,5.7995,163.48,163.44,9.63761362]
[1730621352381,11.05372349,163.47,163.44,9.63761362]
[1730621352682,11.05372349,163.46,163.44,9.63761362]
[1730621352882,11.05372349,163.45,163.44,9.63761362]
[1730621355871,3.0593,163.49,163.45,3.0599]
[1730621356081,11.06198444,163.48,163.45,3.0599]
[1730621356274,11.06198444,163.47,163.45,3.0599]
[1730621356480,11.06198444,163.46,163.45,3.0599]
[1730621359681,4.2546094,163.46,163.45,3.0599]
[1730621359891,11.06604402,163.46,163.45,3.0599]
[1730621363383,4.25617078,163.46,163.45,3.0599]
[1730621363585,11.07275484,163.46,163.45,3.0599]
[1730621363775,5.7993,163.49,163.45,3.0599]
[1730621364084,5.7993,163.49,163.41,3.0606]
[1730621364085,3.06,163.46,163.41,3.0606]
[1730621364274,11.07253706,163.45,163.41,3.0606]
[1730621364473,11.07253706,163.44,163.41,3.0606]
[1730621364673,11.07253706,163.43,163.41,3.0606]
[1730621364891,11.07253706,163.42,163.41,3.0606]
[1730621368595,25.1258176,163.42,163.41,3.0606]
[1730621370084,17.52225056,163.42,163.41,3.0606]
[1730621370683,11.07253706,163.42,163.41,3.0606]
[1730621371088,3.0597,163.47,163.43,3.0604]
[1730621371389,10.95321638,163.46,163.43,3.0604]
[1730621371589,10.95321638,163.45,163.43,3.0604]
[1730621371901,10.95321638,163.44,163.4,6.57751362]
[1730621372093,10.95321638,163.43,163.4,6.57751362]
[1730621372292,10.95321638,163.42,163.4,6.57751362]
[1730621372495,10.95321638,163.41,163.4,6.57751362]
[1730621373095,10.95321638,163.41,163.39,6.57751362]
[1730621373293,10.94704846,163.4,163.39,6.57751362]
[1730621374002,10.94704846,163.4,163.39,9.63871362]
[1730621374604,12.37771362,163.45,163.4,3.0609]
[1730621374806,10.94522874,163.44,163.4,3.0609]
[1730621374998,10.94522874,163.43,163.41,6.57751362]
[1730621375308,10.94522874,163.42,163.41,9.63831362]
[1730621378604,4.20970336,163.42,163.41,9.63831362]
[1730621378904,10.94071526,163.42,163.41,9.63831362]
[1730621380006,4.20970336,163.42,163.41,9.63831362]
[1730621380598,4.1274,163.46,163.42,3.0605]
[1730621380795,4.1274,163.46,163.42,9.63801362]
[1730621381202,4.1274,163.46,163.43,3.0603]
[1730621381505,1.3874,163.46,163.43,3.0603]
[1730621382013,10.93710985,163.45,163.43,3.0603]
[1730621382201,10.93710985,163.44,163.43,3.0603]
[1730621383700,10.93710985,163.44,163.42,9.63801362]
[1730621383899,10.93710985,163.43,163.42,9.63801362]
[1730621385206,17.0635045,163.43,163.42,9.63801362]
[1730621386102,10.93710985,163.43,163.42,9.63801362]
[1730621386399,10.93710985,163.43,163.41,9.63831362]
[1730621386608,10.93710985,163.42,163.41,9.63831362]
[1730621386822,10.93710985,163.42,163.37,42.05076841]
[1730621387099,6.57751362,163.43,163.37,6.57751362]
[1730621387100,9.31751362,163.43,163.37,6.57751362]
[1730621387300,10.9948937,163.42,163.37,6.57751362]
[1730621387511,9.31751362,163.43,163.37,6.57751362]
[1730621387694,10.99256218,163.41,163.37,6.57751362]
[1730621387902,10.99256218,163.4,163.37,6.57751362]
[1730621388109,9.31751362,163.43,163.37,6.57751362]
[1730621388291,10.99354828,163.42,163.37,6.57751362]
[1730621388496,10.99354828,163.41,163.37,6.57751362]
[1730621388810,10.99354828,163.4,163.38,3.0612]
[1730621389011,10.99354828,163.39,163.38,3.0612]
[1730621390913,3.0606,163.42,163.38,3.0612]
[1730621391208,10.99063298,163.41,163.38,3.0612]
[1730621391412,10.99063298,163.4,163.38,3.0612]
[1730621391711,10.99063298,163.39,163.38,3.0612]
[1730621392911,4.22716653,163.39,163.38,3.0612]
[1730621394313,4.22716653,163.39,163.32,4.0164]
[1730621394314,10.88328766,163.39,163.36,6.57751362]
[1730621394515,3.0611,163.4,163.36,6.57751362]
[1730621394702,10.81352912,163.38,163.36,6.57751362]
[1730621394908,4.15904966,163.37,163.36,6.57751362]
[1730621395616,10.81280768,163.37,163.36,6.57751362]
[1730621396005,16.82518609,163.37,163.36,6.57751362]
[1730621397211,24.41092869,163.37,163.36,6.57751362]
[1730621397404,16.82518609,163.37,163.36,6.57751362]
[1730621397608,24.41092869,163.37,163.36,6.57751362]
[1730621398117,4.15904966,163.37,163.36,6.57751362]
[1730621398310,3.0612,163.39,163.36,6.57751362]
[1730621398520,7.58562176,163.37,163.36,9.63921362]
[1730621398703,11.67839715,163.37,163.36,9.63921362]
[1730621401219,11.68540221,163.37,163.36,9.63921362]
[1730621402509,4.49438546,163.37,163.36,9.63921362]
[1730621405522,11.69005795,163.37,163.36,9.63921362]
[1730621407924,3.0607,163.42,163.36,6.57751362]
[1730621408117,3.0607,163.42,163.38,3.0614]
[1730621408320,7.1544,163.43,163.37,6.57751362]
[1730621408514,6.000633,163.41,163.38,3.0612]
[1730621408720,17.69450922,163.4,163.38,3.0612]
[1730621408915,17.69450922,163.39,163.38,3.0612]
[1730621410121,13.73191362,163.43,163.38,3.0612]
[1730621410323,11.69194673,163.42,163.38,3.0612]
[1730621410514,11.69194673,163.41,163.38,3.0612]
[1730621410714,11.69194673,163.4,163.37,6.57751362]
[1730621410916,11.69194673,163.39,163.38,3.0613]
[1730621411414,11.69194673,163.39,163.37,9.63901362]
[1730621411613,19.28713009,163.38,163.37,9.63901362]
[1730621414528,11.69194673,163.38,163.37,9.63901362]
[1730621415229,4.49690259,163.38,163.37,9.63901362]
[1730621415417,17.26694748,163.38,163.37,9.63901362]
[1730621417316,11.26590738,163.38,163.37,9.63901362]
[1730621418521,11.26590738,163.38,163.36,6.57751362]
[1730621418827,6.57751362,163.4,163.35,3.0618]
[1730621419028,7.59240939,163.38,163.34,6.57751362]
[1730621419226,11.26418571,163.37,163.34,9.63951362]
[1730621419419,11.26418571,163.36,163.34,9.63951362]
[1730621419621,11.26418571,163.35,163.34,9.63951362]
[1730621422522,11.26232318,163.35,163.34,9.63951362]